bitfinex/quotes_ETHUSD_20250906
["timestamp","ask_amount","ask_price","bid_price","bid_amount"]
[1757165293788,10.87220696,4298.4,4298.3,11.6801]
[1757165295151,10.87220696,4298.4,4298.3,12.1354]
[1757165295481,6.65080975,4298.4,4298.3,12.1354]
[1757165295684,6.52000001,4298.4,4298.3,12.1354]
[1757165296248,6.52000001,4298.4,4298.3,11.6801]
[1757165298084,6.52000001,4298.4,4298.3,12.1354]
[1757165301310,6.52000001,4298.4,4298.3,12.1354]
[1757165304898,6.52000001,4298.4,4298.3,11.6801]
[1757165312274,6.52000001,4298.4,4298.3,12.1354]
[1757165312690,6.52000001,4298.4,4298.3,14.46190117]
[1757165315372,6.52000001,4298.4,4298.3,12.1354]
[1757165316924,6.52000001,4298.4,4298.3,14.46190117]
[1757165317116,6.52000001,4298.4,4298.3,16.21055004]
[1757165319516,6.52000001,4298.4,4298.3,14.46190117]
[1757165321301,1e-08,4298.4,4298.3,14.46190117]
[1757165324423,1e-08,4298.4,4298.3,7.062]
[1757165324424,0.31550001,4298.4,4298.3,7.062]
[1757165324621,0.31550001,4298.4,4298.3,10.918]
[1757165326039,3.43394706,4298.4,4298.3,7.062]
[1757165326238,16.88636596,4298.4,4298.3,10.918]
[1757165326442,16.88634035,4298.4,4298.3,10.918]
[1757165326645,16.66855511,4298.4,4298.3,10.918]
[1757165327143,16.66853717,4298.4,4298.3,10.918]
[1757165328144,16.88631059,4298.4,4298.3,10.918]
[1757165328446,16.66853717,4298.4,4298.3,10.918]
[1757165333623,10.90618356,4298.4,4298.3,10.918]
[1757165336737,10.43298356,4298.4,4298.3,10.918]
[1757165340974,10.43288158,4298.4,4298.3,10.918]
[1757165342072,10.11738158,4298.4,4298.3,10.918]
[1757165342869,10.43288158,4298.4,4298.3,10.918]
[1757165343078,10.90608158,4298.4,4298.3,10.918]
[1757165343237,11.27168158,4298.4,4298.3,10.918]
[1757165343770,10.90608158,4298.4,4298.3,10.918]
[1757165343968,10.43288158,4298.4,4298.3,10.918]
[1757165344535,10.11738158,4298.4,4298.3,10.918]
[1757165347353,10.43288158,4298.4,4298.3,10.918]
[1757165350266,10.11738158,4298.4,4298.3,10.918]
[1757165350576,10.11738158,4298.4,4298.3,11.2154]
[1757165350785,10.11738158,4298.4,4298.3,11.669]
[1757165351352,10.33504731,4298.4,4298.3,11.669]
[1757165352480,10.33504731,4298.4,4298.3,11.2154]
[1757165352686,10.33504731,4298.4,4298.3,10.918]
[1757165353782,10.33515674,4298.4,4298.3,10.918]
[1757165354487,10.54685674,4298.4,4298.3,10.918]
[1757165357602,10.33515674,4298.4,4298.3,10.918]
[1757165359172,10.33515674,4298.4,4298.3,7.062]
[1757165359372,10.33515674,4298.4,4298.3,10.918]
[1757165365285,10.33515674,4298.4,4298.3,11.2154]
[1757165365883,10.33515674,4298.4,4298.3,11.669]
[1757165368273,10.33515674,4298.4,4298.3,11.2144]
[1757165369775,10.33529499,4298.4,4298.3,11.2144]
[1757165371934,10.33529499,4298.4,4298.3,11.668]
[1757165372283,10.33529499,4298.4,4298.3,12.1671]
[1757165372890,10.33529499,4298.4,4298.3,11.668]
[1757165373295,10.54699499,4298.4,4298.3,7.062]
[1757165373624,10.54699499,4298.4,4298.3,10.917]
[1757165373998,10.54699499,4298.4,4298.3,7.062]
[1757165374187,10.54699499,4298.4,4298.3,10.917]
[1757165375217,10.33529499,4298.4,4298.3,10.917]
[1757165375782,10.33529499,4298.4,4298.3,11.2144]
[1757165375981,10.33529499,4298.4,4298.3,12.1671]
[1757165376189,9.98681738,4298.4,4298.3,12.1671]
[1757165376436,10.33564965,4298.4,4298.3,11.668]
[1757165376583,10.33564965,4298.4,4298.3,11.2144]
[1757165377278,10.54734965,4298.4,4298.3,10.917]
[1757165378705,10.54734965,4298.4,4298.3,7.062]
[1757165378924,10.54734965,4298.4,4298.3,10.917]
[1757165383504,10.54729415,4298.4,4298.3,10.917]
[1757165390738,10.33551913,4298.4,4298.3,11.2066]
[1757165390943,10.33551913,4298.4,4298.3,11.6596]
[1757165391531,10.33551913,4298.4,4298.3,11.2066]
[1757165392661,10.33551913,4298.4,4298.3,11.6596]
[1757165392855,10.33551913,4298.4,4298.3,12.1346]
[1757165393057,10.33551913,4298.4,4298.3,11.6596]
[1757165393952,10.33551913,4298.4,4298.3,11.2066]
[1757165394155,10.33551913,4298.4,4298.3,11.6596]
[1757165394514,10.33551913,4298.4,4298.3,12.1346]
[1757165395354,10.33551913,4298.4,4298.3,11.6596]
[1757165396622,10.33551913,4298.4,4298.3,11.2066]
[1757165396844,10.33551913,4298.4,4298.3,11.6596]
[1757165398436,10.33551913,4298.4,4298.3,6.3126]
[1757165399462,10.33551913,4298.4,4298.3,5.8596]
[1757165399665,10.33551913,4298.4,4298.3,5.57]
[1757165399866,10.33551913,4298.4,4298.3,5.8596]
[1757165400467,10.33551913,4298.4,4298.3,5.57]
[1757165401773,11.47671913,4298.4,4298.3,1.715]
[1757165401952,11.47671913,4298.4,4298.3,5.569]
[1757165403441,11.02141913,4298.4,4298.3,5.569]
[1757165404262,10.56031913,4298.4,4298.3,5.569]
[1757165404465,10.56031913,4298.4,4298.3,1.715]
[1757165404662,10.56031913,4298.4,4298.3,5.569]
[1757165408092,10.33551913,4298.4,4298.3,5.569]
[1757165418322,10.33544894,4298.4,4298.3,5.569]
[1757165418823,10.56024894,4298.4,4298.3,5.569]
[1757165422328,10.56024894,4298.4,4297.8,0.004]
[1757165422329,6.11850117,4298.3,4297.8,0.004]
[1757165422534,6.11871769,4297.9,4297.8,0.004]
[1757165422825,6.71914925,4297.9,4297.8,3.354]
[1757165423012,7.62904925,4297.9,4297.8,3.354]
[1757165423336,7.62904925,4297.9,4297.0,0.004]
[1757165423337,6.11893426,4297.5,4297.0,0.004]
[1757165423523,7.07945925,4297.5,4297.4,5.569]
[1757165423687,2.32715086,4297.1,4296.9,0.004]
[1757165423893,6.11931334,4296.8,4296.7,0.004]
[1757165424110,6.11931334,4296.8,4296.7,0.759]
[1757165424111,6.7762449,4296.8,4296.7,0.759]
[1757165424310,7.6301449,4296.8,4296.7,0.759]
[1757165424503,8.63748531,4296.8,4296.7,0.759]
[1757165424714,6.31017197,4296.8,4295.9,0.004]
[1757165424894,3.792,4296.5,4296.4,0.33]
[1757165425253,6.49720085,4296.5,4296.4,0.33]
[1757165425390,7.63030741,4296.5,4296.4,2.041]
[1757165425587,8.79666253,4296.5,4296.4,2.041]
[1757165427599,3.11953002,4296.4,4295.9,0.004]
[1757165427933,4.0945557,4296.4,4296.3,1.715]
[1757165428128,4.7754557,4296.4,4296.3,1.715]
[1757165428321,4.74636158,4296.4,4296.3,1.715]
[1757165428515,5.87038083,4296.4,4296.3,1.715]
[1757165428729,5.87038083,4296.4,4296.3,5.477]
[1757165429139,5.87038083,4296.4,4296.3,5.57]
[1757165429542,6.11963837,4296.2,4295.9,0.004]
[1757165429739,8.49316287,4296.2,4296.1,1.736]
[1757165429944,8.80146287,4296.2,4296.1,1.736]
[1757165430663,8.80146287,4296.2,4296.1,5.591]
[1757165431165,8.49316287,4296.2,4296.1,5.591]
[1757165431477,8.74496287,4296.2,4296.1,5.591]
[1757165433568,8.52707322,4296.2,4296.1,5.591]
[1757165434130,15.04707322,4296.2,4296.1,5.591]
[1757165434529,15.26335419,4296.2,4296.1,5.591]
[1757165435829,15.01155419,4296.2,4296.1,5.8822]
[1757165436022,14.66453131,4296.2,4296.1,6.7755]
[1757165438340,9.63963837,4296.2,4296.1,6.7755]
[1757165438764,12.63963837,4296.2,4296.1,6.7755]
[1757165439556,12.63963837,4296.2,4296.1,6.3104]
[1757165441298,12.63963837,4296.2,4296.1,5.8822]
[1757165441444,12.92673837,4296.2,4296.1,1.736]
[1757165441644,15.06247255,4296.2,4296.1,5.592]
[1757165442260,14.77537255,4296.2,4296.1,5.592]
[1757165442461,8.25537255,4296.2,4296.1,5.592]
[1757165442662,8.25537255,4296.2,4296.1,5.9086]
[1757165442862,8.25537255,4296.2,4296.1,6.811]
[1757165443474,6.11963837,4296.2,4296.1,6.811]
[1757165448965,6.11963837,4296.2,4296.1,6.3468]
[1757165449164,6.4667095,4296.2,4296.1,6.3468]
[1757165449366,6.4667095,4296.2,4296.1,6.811]
[1757165451975,3.4667095,4296.2,4296.1,6.811]
[1757165452878,11.30758936,4296.2,4296.1,5.592]
[1757165453079,14.30758936,4296.2,4296.1,5.592]
[1757165453278,10.85038936,4296.2,4296.1,5.592]
[1757165453566,10.63598936,4296.2,4296.1,5.592]
[1757165456379,10.63598936,4296.2,4296.1,5.9086]
[1757165456970,10.63598936,4296.2,4296.1,6.3468]
[1757165457392,10.63747197,4296.2,4296.1,6.811]
[1757165457578,9.98819211,4296.2,4296.1,6.811]
[1757165460180,9.98819211,4296.2,4296.1,5.592]
[1757165460379,10.20259211,4296.2,4296.1,5.592]
[1757165461271,9.98819211,4296.2,4296.1,5.592]
[1757165461473,9.98819211,4296.2,4296.1,6.3468]
[1757165461805,11.21986791,4296.2,4296.1,6.811]
[1757165463994,11.43426791,4296.2,4296.1,5.592]
[1757165465905,17.76166395,4296.2,4296.1,1.736]
[1757165466283,17.76166395,4296.2,4296.1,5.591]
[1757165466888,17.29596395,4296.2,4295.9,0.004]
[1757165467107,17.29596395,4296.2,4294.1,0.71852157]
[1757165467108,3.792,4295.2,4294.8,1e-08]
[1757165467319,2.32850556,4294.6,4293.5,1.712]
[1757165467624,8.8124812,4293.9,4293.5,1.712]
[1757165467788,10.07658875,4293.9,4293.8,1e-08]
[1757165467996,3.12121063,4293.3,4293.2,5.351]
[1757165468197,3.75686437,4293.3,4293.2,7.063]
[1757165468604,3.75686437,4293.3,4293.2,10.941]
[1757165468917,4.45581233,4293.3,4293.2,10.941]
[1757165469282,4.45581233,4293.3,4293.1,1e-08]
[1757165469283,3.12126488,4293.2,4293.1,1e-08]
[1757165469518,3.46981862,4293.2,4293.1,3.87900001]
[1757165469723,3.12137339,4293.0,4292.9,1.712]
[1757165469882,3.77572713,4293.0,4292.9,1.712]
[1757165470211,5.47740293,4293.0,4292.9,1.712]
[1757165470414,5.63465684,4293.0,4292.9,1.712]
[1757165470808,5.4760864,4293.0,4292.9,5.6]
[1757165471206,4.78955684,4293.0,4292.9,5.6]
[1757165471405,3.12137339,4293.0,4292.9,6.8421]
[1757165472617,9.64137339,4293.0,4292.9,6.8421]
[1757165473116,9.64137339,4293.0,4292.9,4.6574]
[1757165473319,2.32975327,4292.3,4292.1,0.02]
[1757165473615,9.07642216,4292.2,4292.1,0.02]
[1757165473817,8.96172424,4292.2,4292.1,0.02]
[1757165474230,8.96172373,4292.2,4292.1,0.02]
[1757165474428,9.41192373,4292.2,4292.1,0.02]
[1757165474618,12.41192373,4292.2,4292.1,3.895]
[1757165474814,14.00300512,4292.2,4292.1,3.895]
[1757165475396,13.87338498,4292.2,4292.1,3.895]
[1757165475718,13.42318498,4292.2,4292.1,3.895]
[1757165475917,14.34338498,4292.2,4292.1,3.895]
[1757165478195,8.93888894,4292.2,4292.1,3.895]
[1757165478424,14.34338498,4292.2,4292.1,3.895]
[1757165479547,0.792,4291.9,4291.7,1.713]
[1757165479839,11.85466313,4291.9,4291.7,1.713]
[1757165480019,14.4613089,4291.9,4291.7,1.713]
[1757165480829,14.4613089,4291.9,4291.8,3.919]
[1757165482663,14.1555089,4291.9,4291.8,5.1611]
[1757165482946,11.8499704,4291.9,4291.8,5.1611]
[1757165483244,6.52,4291.9,4291.8,5.1611]
[1757165483602,7.312,4291.9,4291.8,5.1611]
[1757165483823,9.6419704,4291.9,4291.8,5.1611]
[1757165484028,7.312,4291.9,4291.8,5.1611]
[1757165484214,9.6419704,4291.9,4291.8,5.1611]
[1757165484828,10.90907389,4291.9,4291.8,4.7075]
[1757165485023,10.90907389,4291.9,4291.8,5.1611]
[1757165485833,8.57910349,4291.9,4291.8,5.1611]
[1757165486014,7.312,4291.9,4291.8,5.1611]
[1757165486420,9.6419704,4291.9,4291.8,5.1611]
[1757165487507,7.312,4291.9,4291.8,5.1611]
[1757165487711,9.6419704,4291.9,4291.8,5.1611]
[1757165489045,7.312,4291.9,4291.8,5.1651]
[1757165489347,9.6419704,4291.9,4291.8,5.1651]
[1757165489548,7.312,4291.9,4291.8,5.1651]
[1757165489914,0.6990799,4292.3,4291.8,5.1651]
[1757165490111,0.001,4292.8,4292.0,2.32991612]
[1757165490307,0.001,4292.8,4292.1,3.892]
[1757165490520,0.001,4292.8,4292.7,0.3158]
[1757165490746,0.001,4292.8,4292.7,11.2788]
[1757165491148,0.001,4292.8,4292.7,12.2051]
[1757165492017,0.793,4292.8,4292.7,12.2051]
[1757165492214,3.12248192,4292.8,4292.7,12.2051]
[1757165492847,0.793,4292.8,4292.7,12.2051]
[1757165493429,3.12248192,4292.8,4292.7,12.2051]
[1757165493816,0.793,4292.8,4292.7,12.2051]
[1757165495450,0.92295401,4292.8,4292.7,12.2051]
[1757165495826,0.13095401,4292.8,4292.7,12.2051]
[1757165496025,0.001,4292.8,4292.7,12.2051]
[1757165497454,0.13095401,4292.8,4292.7,12.2051]
[1757165497617,0.001,4292.8,4292.7,12.2051]
[1757165498019,0.13095401,4292.8,4292.7,12.2051]
[1757165498214,0.001,4292.8,4292.7,12.2051]
[1757165498657,0.13095401,4292.8,4292.7,12.2051]
[1757165498961,0.001,4292.8,4292.7,12.2051]
[1757165504633,0.793,4292.8,4292.7,7.07]
[1757165504836,4.16056967,4292.8,4292.7,10.958]
[1757165505130,4.62566967,4292.8,4292.7,10.958]
[1757165505450,4.84261142,4292.8,4292.7,10.958]
[1757165505631,5.54163593,4292.8,4292.7,10.958]
[1757165506460,4.63703593,4292.8,4292.7,10.958]
[1757165507447,4.42009418,4292.8,4292.7,10.958]
[1757165508163,1.62219519,4292.8,4292.7,11.2594]
[1757165508380,0.92317068,4292.8,4292.7,12.177]
[1757165508961,0.92317068,4292.8,4292.7,11.2594]
[1757165509128,0.92317068,4292.8,4292.7,11.7072]
[1757165509326,1.14024108,4292.8,4292.7,12.177]
[1757165509661,0.92317068,4292.8,4292.7,12.177]
[1757165511462,0.13117068,4292.8,4292.7,12.177]
[1757165511627,0.001,4292.8,4292.7,12.177]
[1757165512340,0.001,4292.8,4292.7,14.50653618]
[1757165518135,0.001,4292.8,4292.7,16.19015171]
[1757165521657,0.117,4292.8,4292.7,16.19015171]
[1757165526152,0.117,4292.8,4292.7,15.74235171]
[1757165526340,0.117,4292.8,4292.7,16.19015171]
[1757165527449,0.117,4292.8,4292.7,7.07]
[1757165527649,0.4139,4292.8,4292.7,10.956]
[1757165528653,0.117,4292.8,4292.7,14.50453618]
[1757165541691,0.13149057,4293.3,4293.2,2.32926488]
[1757165541891,0.13149057,4293.3,4293.2,9.44319137]
[1757165541892,0.001,4293.3,4293.2,9.44319137]
[1757165542091,0.001,4293.3,4293.2,9.75639137]
[1757165542295,0.001,4293.3,4293.2,9.44319137]
[1757165544763,0.001,4293.3,4292.7,7.07]
[1757165544764,0.31,4293.3,4292.7,7.07]
[1757165545071,0.116,4292.8,4292.7,9.39953618]
[1757165545419,0.425,4292.8,4292.7,13.28453618]
[1757165546662,1.3239,4292.8,4292.7,7.07]
[1757165546879,2.1159,4292.8,4292.7,10.954]
[1757165549985,2.1159,4292.8,4292.7,10.954]
[1757165553713,1.6858,4292.8,4292.7,10.954]
[1757165553886,2.08731467,4292.8,4292.7,10.953]
[1757165554091,2.24655906,4292.8,4292.7,10.953]
[1757165555221,2.24653479,4292.8,4292.7,10.953]
[1757165556415,2.1159,4292.8,4292.7,10.953]
[1757165558031,1.217,4292.8,4292.7,10.953]
[1757165558401,1.6471,4292.8,4292.7,10.953]
[1757165558836,1.6481,4292.8,4292.7,10.953]
[1757165561437,1.7053,4292.8,4292.7,10.953]
[1757165561613,2.1645,4292.8,4292.7,10.953]
[1757165562209,2.61388338,4292.8,4292.7,10.953]
[1757165562409,5.07384933,4292.8,4292.7,10.953]
[1757165564319,8.07384933,4292.8,4292.7,10.953]
[1757165565334,8.07376222,4292.8,4292.7,10.953]
[1757165565632,13.48569594,4292.8,4292.7,10.953]
[1757165567209,20.00569594,4292.8,4292.7,1.714]
[1757165567412,20.00569594,4292.8,4292.7,4.867]
[1757165574157,0.792,4292.6,4292.3,1.713]
[1757165574451,3.0,4292.7,4292.3,1.713]
[1757165574452,8.84883272,4292.4,4292.3,1.713]
[1757165574632,9.92572964,4292.4,4292.3,1.713]
[1757165575469,9.92572964,4292.4,4292.3,5.593]
[1757165575644,9.92572964,4292.4,4292.1,0.004]
[1757165575645,0.792,4292.2,4292.1,0.004]
[1757165575842,11.53384984,4292.0,4291.9,1.714]
[1757165576020,12.92594676,4292.0,4291.9,5.595]
[1757165576221,19.44194676,4292.0,4291.9,5.595]
[1757165576447,19.89112841,4292.0,4291.9,5.595]
[1757165577837,20.59039895,4292.0,4291.9,5.595]
[1757165578654,20.46020376,4292.0,4291.9,5.595]
[1757165578823,20.59034281,4292.0,4291.9,5.595]
[1757165579032,19.64384281,4292.0,4291.9,5.595]
[1757165580848,19.32864281,4292.0,4291.9,5.595]
[1757165581372,20.10304281,4292.0,4291.9,5.595]
[1757165582434,20.10300589,4292.0,4291.9,5.595]
[1757165583035,19.64380589,4292.0,4291.9,5.595]
[1757165584070,19.32860589,4292.0,4291.9,5.595]
[1757165584368,19.64380589,4292.0,4291.9,5.595]
[1757165585643,19.32860589,4292.0,4291.9,5.595]
[1757165586056,19.32860589,4292.0,4291.9,6.3657]
[1757165586255,19.32860589,4292.0,4291.9,6.7936]
[1757165586667,19.32860589,4292.0,4291.9,5.8985]
[1757165587056,19.32860589,4292.0,4291.9,5.595]
[1757165588974,19.32860589,4292.0,4291.9,5.8985]
[1757165589175,13.91667217,4292.0,4291.9,6.7936]
[1757165589769,7.34537267,4292.0,4291.9,6.7936]
[1757165589966,6.64610213,4292.0,4291.9,6.7936]
[1757165590158,8.97601825,4292.0,4291.9,6.7936]
[1757165590670,9.76801825,4292.0,4291.9,6.7936]
[1757165592066,9.76801825,4292.0,4291.9,6.3657]
[1757165592250,9.76801825,4292.0,4291.9,6.8286]
[1757165593151,7.43810213,4292.0,4291.9,6.8286]
[1757165593352,9.76801825,4292.0,4291.9,6.8286]
[1757165594587,7.43810213,4292.0,4291.9,6.8286]
[1757165594905,0.13010213,4292.0,4291.9,7.51476]
[1757165595066,0.001,4292.1,4291.9,7.51476]
[1757165595255,0.001,4292.1,4292.0,0.9211]
[1757165595658,0.001,4292.1,4292.0,1.2085]
[1757165604715,0.001,4292.1,4292.0,6.5645]
[1757165605624,0.001,4292.1,4292.0,6.1016]
[1757165605928,0.001,4292.1,4292.0,6.5645]
[1757165607786,0.001,4292.1,4292.0,6.1016]
[1757165607986,0.001,4292.1,4292.0,6.5645]
[1757165612182,0.001,4292.1,4292.0,6.5685]
[1757165613388,0.001,4292.1,4292.0,8.89841612]
[1757165615491,0.001,4292.1,4292.0,10.58365916]
[1757165620113,0.001,4292.1,4292.0,10.67684854]
[1757165621217,0.001,4292.1,4292.0,10.58365916]
[1757165621418,0.001,4292.1,4292.0,10.67684853]
[1757165623831,0.001,4292.1,4292.0,10.75786157]
[1757165625037,0.001,4292.1,4292.0,10.85105094]
[1757165625238,0.001,4292.1,4292.0,13.85105094]
[1757165634741,0.001,4292.1,4292.0,12.92995094]
[1757165634935,0.001,4292.1,4292.0,13.38995094]
[1757165635648,0.001,4292.1,4292.0,12.92995094]
[1757165636546,0.3047,4292.1,4292.0,9.64255094]
[1757165636737,0.7955,4292.1,4292.0,7.78310549]
[1757165636939,1.2582,4292.1,4292.0,7.68991612]
[1757165639155,0.7955,4292.1,4292.0,7.68991612]
[1757165639475,1.2582,4292.1,4292.0,7.68991612]
[1757165639975,0.7674,4292.1,4292.0,7.68991612]
[1757165640763,0.3047,4292.1,4292.0,7.68991612]
[1757165640965,0.7674,4292.1,4292.0,7.68991612]
[1757165642685,0.3047,4292.1,4292.0,7.68991612]
[1757165643680,1.2582,4292.1,4292.0,5.36]
[1757165644454,1.2582,4292.1,4292.0,7.68991612]
[1757165645881,0.3047,4292.1,4292.0,7.68991612]
[1757165646797,0.001,4292.1,4292.0,7.68991612]
[1757165647771,0.3047,4292.1,4292.0,7.68991612]
[1757165648180,0.001,4292.1,4292.0,8.44581612]
[1757165648499,0.001,4292.1,4292.0,8.90581612]
[1757165650385,0.001,4292.1,4292.0,13.60340019]
[1757165650881,0.001,4292.1,4292.0,13.71940019]
[1757165664931,0.3063,4292.1,4292.0,12.50350019]
[1757165667708,0.001,4292.1,4292.0,12.50350019]
[1757165668339,0.001,4292.1,4292.0,13.78290019]
[1757165689665,0.001,4292.1,4292.0,12.81690019]
[1757165692756,0.001,4292.1,4292.0,13.27140019]
[1757165694295,0.001,4292.1,4292.0,13.76740019]
[1757165697854,0.001,4292.1,4292.0,13.27140019]
[1757165698694,0.001,4292.1,4292.0,13.76740019]
[1757165699286,0.001,4292.1,4292.0,13.27140019]
[1757165699592,0.001,4292.1,4292.0,12.81690019]
[1757165700156,0.001,4292.1,4292.0,13.27140019]
[1757165701854,0.001,4292.1,4292.0,12.81690019]
[1757165706358,0.3108,4292.1,4292.0,12.50350019]
[1757165706559,0.3108,4292.1,4292.0,10.80591612]
[1757165706780,1.2683,4292.1,4292.0,10.80591612]
[1757165706987,0.3108,4292.1,4292.0,10.80591612]
[1757165708214,0.001,4292.1,4292.0,10.80591612]
[1757165709805,0.001,4292.1,4292.0,11.10751612]
[1757165711321,0.001,4292.6,4292.5,2.32964472]
[1757165711470,0.001,4292.6,4292.5,9.19664472]
[1757165711883,0.001,4292.6,4292.5,10.38784472]
[1757165712084,0.001,4292.6,4292.5,10.50384472]
[1757165712290,0.001,4292.6,4292.5,11.79880452]
[1757165713207,0.001,4292.6,4292.5,10.90920452]
[1757165716118,0.001,4292.6,4292.5,10.60760452]
[1757165716415,0.299,4292.6,4292.5,10.60760452]
[1757165716784,0.299,4292.6,4292.5,6.74060452]
[1757165716985,0.299,4292.6,4292.5,10.60760452]
[1757165718084,0.001,4292.6,4292.5,10.60760452]
[1757165720184,0.299,4292.6,4292.5,12.32060452]
[1757165720725,0.001,4292.6,4292.5,12.32060452]
[1757165721718,0.001,4292.6,4292.5,12.62220452]
[1757165721886,0.001,4292.6,4292.5,13.51180452]
[1757165722630,0.001,4292.6,4292.5,12.32060452]
[1757165724909,0.001,4292.6,4292.5,17.97620452]
[1757165725649,0.4199,4293.1,4293.0,2.32937339]
[1757165725801,0.4199,4293.1,4293.0,6.19637339]
[1757165726133,1.2178,4293.1,4293.0,6.19637339]
[1757165726511,0.001,4293.3,4293.2,2.32926488]
[1757165726699,0.001,4293.3,4293.2,6.19626488]
[1757165726900,0.299,4293.3,4293.2,6.19626488]
[1757165727101,0.299,4293.3,4293.2,6.28943211]
[1757165727306,0.7989,4293.3,4293.2,6.28943211]
[1757165727742,1.2488,4293.3,4293.2,6.28943211]
[1757165729842,1.2488,4293.3,4293.2,8.00243211]
[1757165731310,0.299,4293.3,4293.2,8.00243211]
[1757165731730,0.7489,4293.3,4293.2,8.00243211]
[1757165731904,0.299,4293.3,4293.2,8.00243211]
[1757165732105,0.001,4293.3,4293.2,8.00243211]
[1757165732342,0.299,4293.3,4293.2,8.00243211]
[1757165732846,1.2488,4293.3,4293.2,8.00243211]
[1757165734113,0.7489,4293.3,4293.2,8.00243211]
[1757165734531,0.299,4293.3,4293.2,13.35643211]
[1757165734934,0.7489,4293.3,4293.2,13.35643211]
[1757165736545,0.299,4293.3,4293.2,13.35643211]
[1757165737083,0.001,4293.3,4293.2,17.11353211]
[1757165737351,0.001,4293.3,4293.2,19.49192266]
[1757165740916,0.001,4293.3,4293.2,14.73532266]
[1757165741135,0.001,4293.3,4293.2,18.60132266]
[1757165741550,0.001,4293.3,4293.2,19.04502266]
[1757165741756,0.001,4293.3,4293.2,19.53362266]
[1757165743261,0.001,4293.3,4293.2,15.66762266]
[1757165743428,0.001,4293.3,4293.2,19.53362266]
[1757165744984,0.001,4293.3,4293.2,18.60132266]
[1757165754561,0.001,4293.3,4293.2,19.53362266]
[1757165754955,0.001,4293.3,4293.2,19.08992266]
[1757165755156,0.001,4293.3,4293.2,19.04502266]
[1757165756467,0.001,4293.3,4293.2,19.53362266]
[1757165758247,0.001,4293.3,4293.2,18.60132266]
[1757165758478,0.001,4293.3,4293.2,18.29972266]
[1757165758682,0.2965,4293.3,4293.2,18.29972266]
[1757165759085,0.001,4293.3,4293.2,18.58652266]
[1757165759283,0.001,4293.3,4293.2,18.29972266]
[1757165759493,1.2315,4293.3,4293.2,16.35443211]
[1757165759695,1.2315,4293.3,4293.2,13.35443211]
[1757165760120,1.2315,4293.3,4293.2,11.02516723]
[1757165760915,1.2315,4293.3,4293.2,13.35443211]
[1757165761487,0.7329,4293.3,4293.2,13.35443211]
[1757165761690,0.2965,4293.3,4293.2,13.35443211]
[1757165762511,0.001,4293.3,4293.2,13.64123211]
[1757165762680,0.001,4293.3,4293.2,14.57353211]
[1757165764098,0.001,4293.3,4293.2,19.84144008]
[1757165764796,0.7951,4293.3,4293.2,7.16016723]
[1757165765101,4.48308926,4293.3,4293.2,10.932]
[1757165766494,5.1819607,4293.3,4293.2,10.932]
[1757165766694,5.1819607,4293.3,4293.2,7.067]
[1757165766905,5.1819607,4293.3,4293.2,10.935]
[1757165767117,6.57346983,4293.3,4293.2,10.935]
[1757165767521,6.57346983,4293.3,4293.2,7.067]
[1757165767832,6.57346983,4293.3,4293.2,10.935]
[1757165775205,13.08946983,4293.3,4293.2,10.935]
[1757165776543,13.08946983,4293.3,4293.2,5.58]
[1757165777638,12.65306983,4293.3,4293.2,5.58]
[1757165777838,13.09696983,4293.3,4293.2,5.58]
[1757165779116,12.15446983,4293.3,4293.2,5.58]
[1757165779448,12.0240912,4293.3,4293.2,5.58]
[1757165779645,12.4679912,4293.3,4293.2,5.58]
[1757165780453,12.59778689,4293.3,4293.2,5.58]
[1757165781056,12.15388689,4293.3,4293.2,5.58]
[1757165781215,12.0240912,4293.3,4293.2,5.58]
[1757165782453,12.15390668,4293.3,4293.2,5.58]
[1757165783553,12.0240912,4293.3,4293.2,5.58]
[1757165784326,12.15390601,4293.3,4293.2,5.58]
[1757165790680,12.14672733,4293.3,4293.2,5.58]
[1757165790835,10.46589688,4293.3,4293.2,6.3723]
[1757165791042,0.001,4293.5,4293.2,6.8]
[1757165791243,0.001,4293.5,4293.3,0.9186]
[1757165791498,0.001,4293.5,4293.2,2.71320632]
[1757165791658,3.12119986,4293.4,4293.3,3.868]
[1757165791840,3.56620356,4293.4,4293.3,3.868]
[1757165792211,4.79622499,4293.4,4293.3,3.868]
[1757165792775,4.48132499,4293.4,4293.3,3.868]
[1757165793098,4.48132499,4293.4,4293.3,4.1694]
[1757165793265,4.48132499,4293.4,4293.3,4.5971]
[1757165794699,4.48132499,4293.4,4293.3,3.868]
[1757165796479,4.48132499,4293.4,4293.3,3.868]
[1757165797456,4.4812815,4293.4,4293.3,3.868]
[1757165798186,3.25126007,4293.4,4293.3,3.868]
[1757165798689,3.25126007,4293.4,4293.3,4.5971]
[1757165799388,3.25126007,4293.4,4293.3,3.868]
[1757165802952,3.25126007,4293.4,4293.3,4.1786]
[1757165803153,3.25126007,4293.4,4293.3,5.1035]
[1757165803451,3.25126007,4293.4,4293.3,4.6374]
[1757165803964,0.9231037,4293.4,4293.3,4.6374]
[1757165804165,0.9231037,4293.4,4293.3,5.1035]
[1757165804562,0.9231037,4293.4,4293.1,0.004]
[1757165804563,0.908,4293.3,4293.1,0.004]
[1757165804779,3.25136858,4293.2,4293.1,0.004]
[1757165804956,7.03046858,4293.2,4293.1,3.919]
[1757165805159,13.90356257,4293.2,4293.1,0.004]
[1757165805468,12.91430213,4293.2,4293.1,3.92]
[1757165805675,14.47139023,4293.2,4293.1,3.92]
[1757165809590,3.12148192,4292.8,4292.6,0.004]
[1757165809901,11.69443769,4292.8,4292.7,1.717]
[1757165810205,13.61365608,4292.8,4292.7,1.717]